[Event "SVK ECo-C Extraliga 2021-22"]
[Site "Slovakia"]
[Date "2022.06.10"]
[Round "9.22"]
[White "Smolen, Jan"]
[Black "Halak, Miklos"]
[Result "1/2-1/2"]
[ECO "C47"]
[WhiteElo "2410"]
[BlackElo "2247"]
[Annotator "TA"]
[PlyCount "86"]
[EventDate "2021.10.21"]
[EventType "team-tourn"]
[EventCountry "SVK"]
[SourceTitle "playchess.com"]
[Source "ChessBase"]
[SourceQuality "1"]
[TimeControl "40/5400+30:1800+30"]

{[%evp 17,86,0,0,-8,0,8,4,3,20,11,0,-8,26,17,29,-10,-15,-7,0,0,0,-8,16,-7,-12,-12,-4,-18,43,-12,0,0,0,-46,-35,-23,32,32,32,25,42,12,59,75,49,27,29,0,0,0,0,0,0,0,0,0,44,44,44,44,44,44,44,44,44,44,44,44,44,44,44]} 1. e4 {[%emt 0:00:06]} e5 {[%emt 0:00:53]} 2. Nf3 {[%emt 0:00:04]} Nc6 {[%emt 0:00:06]} 3. Nc3 {[%emt 0:00:02]} Nf6 {[%emt 0:00:41]} 4. d4 {[%emt 0:00:02]} exd4 {[%emt 0:00:24]} 5. Nxd4 {[%emt 0:00:02]} Bb4 {[%emt 0:00:40]} 6. Nxc6 {[%emt 0:00:04]} bxc6 {[%emt 0:00:13]} 7. Bd3 {[%emt 0:00:03]} d5 {[%emt 0:01:15]} 8. exd5 {[%emt 0:00:02]} cxd5 {[%emt 0:01:40] 8...0-0 is the hot move.} 9. O-O {[%emt 0:00:03]} O-O {[%emt 0:00:52]} 10. h3 {[%emt 0:00:30] C47: Scotch Four Knights and Four Knights with 4 g3.} h6 {[%emt 0:00:54]} 11. Qf3 {[%emt 0:00:00]} c6 {[%emt 0:00:24]} 12. Bf4 {[%emt 0:00:00] The position is equal.} Bd6 {[%emt 0:00:17]} 13. Ne2 {[%emt 0:00:00]} Bxf4 {[%emt 0:01:59]} 14. Nxf4 {[%emt 0:00:00] [#]} Nd7 $146 {[%emt 0:06:28]} ({Predecessor:} 14... a5 15. Rfe1 a4 16. Rad1 Rb8 17. b3 axb3 18. axb3 Re8 19. Nh5 Nxh5 20. Qxh5 Rxe1+ 21. Rxe1 {½-½ (85) Goryachkina,A (2518)-Assaubayeva,B (2372) St Petersburg 2018}) 15. Rfe1 {[%emt 0:01:15]} Qf6 {[%emt 0:02:10]} 16. b3 {[%emt 0:04:20]} g5 {[%emt 0:06:35]} 17. Nh5 {[%emt 0:00:05]} Qxf3 {[%emt 0:00:41]} 18. gxf3 {[%emt 0:00:05]} Nc5 {[%emt 0:01:04]} 19. Kg2 {[%emt 0:02:27]} a5 {[%emt 0:05:50]} 20. Re7 {[%emt 0:05:01]} Be6 {[%emt 0:04:50]} 21. f4 {[%emt 0:01:30]} Nxd3 {[%emt 0:02:41]} 22. cxd3 {[%emt 0:00:22]} c5 {[%emt 0:01:56]} (22... Kh7 $11) 23. Rc1 {[%emt 0:01:10]} (23. Re1 $14 Rfc8 24. fxg5) 23... Rfc8 {[%emt 0:04:48]} 24. fxg5 {[%emt 0:00:26]} hxg5 {[%emt 0:01:36]} 25. f4 {[%emt 0:01:50]} (25. Re1 $11) 25... Kf8 $15 {[%emt 0:03:05]} 26. Rb7 {[%emt 0:00:35]} Bf5 {[%emt 0:08:23]} (26... c4 $1 $11 27. fxg5 cxd3) 27. fxg5 {[%emt 0:14:36]} Bxd3 {[%emt 0:00:17]} 28. Nf6 {[%emt 0:02:01]} c4 {[%emt 0:03:41]} 29. Kg3 {[%emt 0:13:57]} cxb3 {[%emt 0:03:33]} (29... Kg7 $11 {feels stronger.}) 30. Rxc8+ $1 $14 {[%emt 0:00:17]} Rxc8 {[%emt 0:00:11]} 31. axb3 $11 {[%emt 0:00:01][%mdl 4096] Endgame KRB-KRN} d4 {[%emt 0:00:52]} 32. Kf4 {[%emt 0:03:34]} Bc2 {[%emt 0:04:26]} 33. h4 {[%emt 0:00:35]} Rd8 {[%emt 0:02:57]} 34. h5 {[%emt 0:07:34]} Kg7 {[%emt 0:01:51] [#] And now ...d3 would win.} 35. Ng4 {[%emt 0:17:11] aiming for g6.} d3 $1 {[%emt 0:14:27] ...Rd4+ is the strong threat.} 36. g6 {[%emt 0:03:31]} Rd4+ {[%emt 0:01:54]} (36... Bxb3 $5 37. Rxb3 Rd4+ 38. Ke3 Rxg4 $11) 37. Kg5 {[%emt 0:02:45] White is slightly better.} Rxg4+ $1 {[%emt 0:01:00]} 38. Kxg4 $14 {[%emt 0:00:14] [#] Intending Kg5 and mate. KR-KB} d2 {[%emt 0:00:04]} 39. Kg5 $1 {[%emt 0:02:26] Threatening mate with h6+.} Bxg6 $1 {[%emt 0:02:02]} 40. Rd7 {[%emt 0:00:37]} Bc2 {[%emt 0:00:43]} 41. Rxd2 {[%emt 0:30:23]} Bxb3 {[%emt 0:30:16]} 42. Rd6 {[%emt 0:02:17]} a4 {[%emt 0:03:33]} 43. Ra6 {[%emt 0:00:04]} Kh7 {[%emt 0:01:24] Weighted Error Value: White=0.09 (flawless) /Black=0.11 (very precise)} 1/2-1/2

[Event "SVK ECo-C Extraliga 2021-22"]
[Site "Slovakia"]
[Date "2022.06.10"]
[Round "9.23"]
[White "Teglas, Balazs"]
[Black "Borosova, Zuzana"]
[Result "1/2-1/2"]
[ECO "D01"]
[WhiteElo "2150"]
[BlackElo "2265"]
[Annotator "TA"]
[PlyCount "41"]
[EventDate "2021.10.21"]
[EventType "team-tourn"]
[EventCountry "SVK"]
[SourceTitle "playchess.com"]
[Source "ChessBase"]
[SourceQuality "1"]
[TimeControl "40/5400+30:1800+30"]

{[%evp 10,41,-16,-24,-18,-34,-12,-19,0,-9,0,-26,0,-8,0,0,0,-23,-20,-40,-18,-18,-27,-18,5,-18,-11,-19,-11,-11,0,0,0,-25]} 1. d4 {[%emt 0:00:39]} d5 {[%emt 0:00:26]} 2. Nc3 {[%emt 0:00:30]} Nf6 {[%emt 0:00:14]} 3. Bg5 {[%emt 0:00:09]} Nbd7 {[%emt 0:00:37]} 4. Nf3 {[%emt 0:00:12]} h6 {[%emt 0:00:17]} 5. Bh4 {[%emt 0:00:21]} e6 {[%emt 0:00:14]} 6. e3 {[%emt 0:00:44]} Be7 {[%emt 0:00:14] D01: Veresov Opening.} 7. Be2 {[%emt 0:00:07]} c5 {[%emt 0:01:32]} 8. Ne5 {[%emt 0:03:28]} Nxe5 {[%emt 0:18:32]} 9. dxe5 {[%emt 0:00:06]} Nd7 {[%emt 0:00:14][%csl LRe5,LRh4]} 10. Bxe7 {[%emt 0:00:33]} Qxe7 {[%emt 0:00:08]} 11. f4 {[%emt 0:00:14]} a6 {[%emt 0:04:30]} 12. a4 {[%emt 0:29:51] Inhibits b5.} b6 {[%emt 0:02:10]} 13. Bf3 {[%emt 0:06:13]} Bb7 {[%emt 0:05:16]} 14. O-O {[%emt 0:02:04]} O-O {[%emt 0:25:15] [#]} 15. Qe1 $146 {[%emt 0:17:05]} ({Predecessor:} 15. e4 d4 16. Ne2 Rfd8 17. Qe1 Nf8 18. Rd1 Ng6 19. g3 Rd7 20. Qf2 Rad8 21. Rd3 {1-0 (50) Pogromsky,M (2415)-Sakaev,K (2584) Sochi 2018}) 15... Rad8 {[%emt 0:06:30]} 16. Qg3 {[%emt 0:11:50]} f5 {[%emt 0:17:59] The position is equal.} 17. exf6 {[%emt 0:00:55]} Nxf6 {[%emt 0:00:11]} 18. Rae1 {[%emt 0:02:37]} Qd7 {[%emt 0:05:08]} 19. Rd1 {[%emt 0:07:06]} b5 {[%emt 0:02:17]} 20. axb5 {[%emt 0:01:35]} axb5 {[%emt 0:00:01]} 21. Qg6 {[%emt 0:09:40] Not much happened in this game.  Weighted Error Value: White=0.06 (flawless) /Black=0.07 (flawless)} 1/2-1/2

[Event "SVK ECo-C Extraliga 2021-22"]
[Site "Slovakia"]
[Date "2022.06.10"]
[Round "9.24"]
[White "Szucs, Vladimir"]
[Black "Bojtos, Patrik"]
[Result "1-0"]
[ECO "D26"]
[WhiteElo "2082"]
[BlackElo "1986"]
[Annotator "TA"]
[PlyCount "113"]
[EventDate "2021.10.21"]
[EventType "team-tourn"]
[EventCountry "SVK"]
[SourceTitle "playchess.com"]
[Source "ChessBase"]
[SourceQuality "1"]
[TimeControl "40/5400+30:1800+30"]

{[%evp 9,113,28,39,40,57,18,32,28,24,12,39,41,31,0,35,32,45,19,62,73,95,0,91,42,46,50,37,51,67,75,74,68,79,68,94,81,251,252,241,238,241,245,237,226,406,338,471,475,478,402,402,388,388,388,411,494,494,494,482,482,465,459,412,332,220,349,349,268,362,360,335,328,315,293,228,113,114,91,583,539,858,831,1032,1035,856,750,2181,1569,5531,4710,4902,3106,2301,3054,2085,1960,29965,29958,29940,29949,29977,29979,29986,29987,29986,29986]} 1. d4 {[%emt 0:00:25]} d5 {[%emt 0:00:14]} 2. c4 {[%emt 0:00:36]} dxc4 {[%emt 0:00:26]} 3. Nf3 {[%emt 0:00:45]} Nf6 {[%emt 0:01:14]} 4. e3 {[%emt 0:04:57]} e6 {[%emt 0:03:20]} 5. Bxc4 {[%emt 0:00:30]} Be7 {[%emt 0:00:30]} 6. O-O {[%emt 0:00:30] D26: Queen's Gambit Accepted: 4 e3 e6 5 Bxc5 c5 sidelines.} b6 {[%emt 0:00:30][%cal Bb7b6,Bb6b5][%mdl 32]} 7. Qa4+ {[%emt 0:00:30]} c6 {[%emt 0:08:06] [#] And now ...b5 would win.} 8. Be2 $146 {[%emt 0:02:35] White is slightly better.} ({Predecessor:} 8. Qb3 Bb7 9. Nc3 Qc7 10. Bd2 Nbd7 11. Rac1 a6 12. e4 b5 13. Be2 b4 14. Na4 {1-0 (22) Potocki,K (1851)-Czuraj,G Warsaw 2009}) 8... O-O {[%emt 0:05:31]} 9. Rd1 {[%emt 0:09:26]} Qc7 {[%emt 0:08:48]} 10. Nc3 {[%emt 0:04:41]} Nbd7 {[%emt 0:08:44]} 11. Bd2 {[%emt 0:04:38]} b5 {[%emt 0:26:53]} 12. Qc2 {[%emt 0:08:35][%cal Oc3b5] Strongly threatening Nxb5!} a6 {[%emt 0:07:36]} 13. Rac1 {[%emt 0:00:30]} (13. b4 $5) 13... Qb6 {[%emt 0:00:30]} 14. e4 {[%emt 0:05:34] White is more active.} c5 {[%emt 0:08:52]} 15. d5 {[%emt 0:08:43]} (15. e5 $16 Ng4 16. Ne4 cxd4 17. Bg5 (17. Neg5 d3 $11) 17... Bxg5 18. Nexg5) 15... e5 {[%emt 0:01:31]} (15... Bb7 $11) 16. h3 {[%emt 0:02:41]} (16. b3 $16) 16... c4 $14 {[%emt 0:07:46]} 17. Be3 $36 {[%emt 0:01:22][%mdl 2048] Black is under pressure.} Bc5 {[%emt 0:00:17]} 18. Bxc5 {[%emt 0:00:09]} Qxc5 {[%emt 0:00:25]} 19. b3 {[%emt 0:01:34]} cxb3 {[%emt 0:00:45]} 20. Qxb3 {[%emt 0:00:14][%cal Rc3b5] Black must now prevent Nxb5!} Qd6 {[%emt 0:00:27]} 21. a3 {[%emt 0:10:50]} Nc5 {[%emt 0:02:52]} 22. Qb4 {[%emt 0:00:30]} a5 $2 {[%emt 0:04:32]} (22... Nfd7 $16 {might work better.}) 23. Nxb5 $18 {[%emt 0:08:03]} axb4 {[%emt 0:00:08]} 24. Nxd6 {[%emt 0:00:09]} Ncxe4 {[%emt 0:00:21]} 25. Nxe4 {[%emt 0:00:54]} ({And not} 25. Nxc8 Rfxc8 26. Rxc8+ (26. axb4 Nc3 $11) 26... Rxc8 27. axb4 Nc3 $11) 25... Nxe4 {[%emt 0:00:01]} 26. axb4 {[%emt 0:01:10] aiming for d6.} Rb8 $2 {[%emt 0:00:21]} (26... Nd6 27. Nxe5 Re8) 27. Nxe5 {[%emt 0:04:38]} Rxb4 {[%emt 0:02:18]} 28. Nc6 {[%emt 0:00:44]} Rb2 {[%emt 0:00:47]} 29. Ne7+ {[%emt 0:06:42]} Kh8 {[%emt 0:00:00]} 30. Rxc8 {[%emt 0:02:08]} Rxc8 {[%emt 0:00:02]} 31. Nxc8 {[%emt 0:00:09]} Nc3 {[%emt 0:01:34] [#]} 32. Re1 {[%emt 0:06:08]} Rxe2 {[%emt 0:00:33]} 33. Rxe2 {[%emt 0:00:06]} Nxe2+ {[%emt 0:00:03][%mdl 4096] Endgame KN-KN} 34. Kf1 {[%emt 0:00:08]} Nd4 {[%emt 0:00:51]} 35. Ne7 {[%emt 0:03:29]} g6 {[%emt 0:00:02]} 36. Nc6 {[%emt 0:00:43]} Nb5 {[%emt 0:00:27]} 37. Ke1 {[%emt 0:00:49]} Kg8 {[%emt 0:00:25]} 38. Kd2 {[%emt 0:00:32]} Kf8 {[%emt 0:00:14]} 39. Kd3 {[%emt 0:00:58]} Ke8 {[%emt 0:00:59]} 40. Kc4 {[%emt 0:00:28]} Nd6+ {[%emt 0:00:09]} 41. Kd4 {[%emt 0:30:50]} f6 {[%emt 0:30:41]} 42. g4 {[%emt 0:00:00] Against Nf5+} (42. Na5 $18 {and White stays clearly on top.}) 42... Kd7 $16 {[%emt 0:00:00]} 43. f3 {[%emt 0:00:00][%cal Bf2f3,Bf3f4][%mdl 32]} Kc7 $2 {[%emt 0:00:00][%mdl 8192]} (43... h5 $16 {is more resistant.}) 44. Ne7 $18 {[%emt 0:00:00]} Nf7 {[%emt 0:00:00]} 45. f4 {[%emt 0:00:00] Inhibits Ng5.} g5 {[%emt 0:00:00]} 46. Ke4 {[%emt 0:00:00]} Nd6+ {[%emt 0:00:00]} 47. Kf3 {[%emt 0:00:00]} Kb6 {[%emt 0:00:00] [#]} 48. Ng8 $1 {[%emt 0:00:00]} Ne8 {[%emt 0:03:26]} 49. fxg5 {[%emt 0:00:00]} fxg5 {[%emt 0:00:53]} 50. Ke4 {[%emt 0:00:00] Threatening mate with Ke5.} Kc5 {[%emt 0:00:49]} 51. Ke5 {[%emt 0:00:00] White wants to mate with Nf6.} Nd6 {[%emt 0:00:22]} 52. Nf6 {[%emt 0:00:00] Intending Nd7+ and mate.} Nc4+ {[%emt 0:00:41]} 53. Ke6 {[%emt 0:00:00] White mates.} h6 {[%emt 0:00:25]} 54. Ng8 {[%emt 0:00:00]} Ne3 {[%emt 0:00:23]} 55. d6 {[%emt 0:00:00][%cal Bd5d6,Bd6d7][%mdl 32]} Kc6 {[%emt 0:00:43]} 56. Ne7+ {[%emt 0:00:00]} Kb7 {[%emt 0:00:14]} 57. d7 {[%emt 0:00:00] Weighted Error Value: White=0.13 (very precise) /Black=0.56} 1-0

[Event "SVK ECo-C Extraliga 2021-22"]
[Site "Slovakia"]
[Date "2022.06.11"]
[Round "10"]
[White "Saric, Ivan"]
[Black "Vykouk, Jan"]
[Result "1/2-1/2"]
[ECO "B54"]
[WhiteElo "2693"]
[BlackElo "2464"]
[Annotator "TA"]
[PlyCount "119"]
[EventDate "2021.10.21"]
[EventType "team-tourn"]
[EventCountry "SVK"]
[SourceTitle "playchess.com"]
[Source "ChessBase"]
[SourceQuality "1"]
[TimeControl "40/5400+30:1800+30"]

{[%evp 10,119,17,30,23,16,49,30,21,29,23,15,27,10,17,14,50,36,45,18,18,18,21,31,25,29,102,100,110,120,119,28,131,129,139,139,140,131,131,139,135,134,139,138,131,137,141,93,93,87,95,91,97,88,133,100,100,100,100,100,102,102,116,133,169,168,168,146,146,140,140,140,140,140,140,118,118,118,118,118,118,118,118,118,118,118,118,118,118,62,62,62,62,31,31,31,31,31,31,31,31,31,31,31,31,31,31,31,31,8,31,31]} 1. e4 {[%emt 0:00:07]} c5 {[%emt 0:00:18]} 2. Nf3 {[%emt 0:00:05]} d6 {[%emt 0:00:13]} 3. Bb5+ {[%emt 0:00:34]} Bd7 {[%emt 0:00:45]} 4. c4 {[%emt 0:01:29]} Nc6 {[%emt 0:02:08]} 5. d4 {[%emt 0:01:33]} cxd4 {[%emt 0:02:04]} 6. Nxd4 {[%emt 0:00:58]} Nf6 {[%emt 0:00:17] B54: Sicilian: 2...d6 3 d4 cxd4 4 Nxd4, Unusual Lines .} 7. Nc3 {[%emt 0:00:17]} a6 {[%emt 0:02:45]} 8. Nxc6 {[%emt 0:02:24]} bxc6 {[%emt 0:01:06] White has an edge.} 9. Ba4 {[%emt 0:00:04] [#]} g6 $146 {[%emt 0:01:01]} ({Predecessor:} 9... Qa5 10. O-O e5 11. a3 Be7 12. b4 Qc7 13. h3 O-O 14. Be3 Be6 15. Qe2 a5 {0-1 (43) Hidalgo Santana,F (2140)-Hernandez Leon,A (2276) Vecindario 2019}) 10. O-O {[%emt 0:02:17][%cal Oc4c5]} Bg7 {[%emt 0:00:05]} 11. c5 {[%emt 0:06:28]} dxc5 {[%emt 0:00:59]} 12. Be3 {[%emt 0:12:00]} Ng4 {[%emt 0:03:34]} 13. Bxc5 {[%emt 0:00:42]} Qa5 $1 {[%emt 0:11:02][%csl LRc3,LRc5] [#]} 14. Nd5 $1 {[%emt 0:13:12]} Qxc5 {[%emt 0:00:06]} 15. Nc7+ {[%emt 0:00:03]} Kd8 {[%emt 0:00:27]} 16. Nxa8 {[%emt 0:00:07]} Bd4 $1 {[%emt 0:00:06][%cal Rd4f2]} 17. Qd2 {[%emt 0:06:22]} (17. h3 Nxf2 18. Rxf2 Bxf2+ 19. Kh1 e5 $15) 17... Qe5 {[%emt 0:01:19]} (17... Kc8 $1 $11) 18. g3 $1 $16 {[%emt 0:04:29] aiming for Rfd1.} (18. Rfd1 $2 Qxh2+ 19. Kf1 e5 $19) 18... Qh5 {[%emt 0:10:25][%csl Gg4][%cal Rh5h2]} 19. h4 {[%emt 0:00:11]} Qe5 {[%emt 0:00:04][%csl LRb2,LRe4,LRg3] ( -> ...Qxg3+)} 20. Qf4 {[%emt 0:04:14]} ({White should play} 20. Kh1 $16 {Rad1 is the strong threat.} Nf6 21. Rad1) 20... Kc8 {[%emt 0:14:10]} (20... Qxf4 $11 {remains equal.} 21. gxf4 e5) 21. Rad1 {[%emt 0:02:03][%cal Od1d4] And now Rxd4! would win.} Qxf4 {[%emt 0:04:30]} 22. gxf4 {[%emt 0:00:04] The board is on fire.} Ba7 {[%emt 0:00:28]} 23. Rd2 $1 {[%emt 0:02:33]} Nf6 {[%emt 0:05:23] [#]} 24. Rc1 $1 {[%emt 0:03:43]} Kb8 {[%emt 0:07:42] [#]} 25. e5 $1 {[%emt 0:03:09]} ({But not} 25. Bxc6 $6 Rc8 26. Rdc2 (26. Rxd7 Nxd7 27. Rc4 Bc5 $17) 26... Bxc6 27. Rxc6 Rxc6 28. Rxc6 Kxa8 $11) 25... Nd5 {[%emt 0:00:06] [#] White must now prevent ...Rc8.} 26. Nc7 $1 {[%emt 0:00:34][%mdl 512]} Kxc7 {[%emt 0:01:05]} 27. Rxd5 {[%emt 0:00:08]} Rb8 {[%emt 0:00:07]} 28. Rxd7+ {[%emt 0:05:48]} Kxd7 {[%emt 0:00:05]} 29. Rxc6 {[%emt 0:00:03][%mdl 4096] Endgame KRB-KRB} Kd8 {[%emt 0:00:06]} 30. Rxa6 {[%emt 0:00:03]} Bd4 {[%emt 0:00:05]} 31. b3 {[%emt 0:00:34]} Bb6 {[%emt 0:00:16]} 32. Bc6 {[%emt 0:10:31]} Kc7 {[%emt 0:00:07]} 33. Ra8 {[%emt 0:03:32]} Rxa8 {[%emt 0:00:08]} 34. Bxa8 {[%emt 0:00:04] KB-KB} Bd4 {[%emt 0:10:20]} 35. Kg2 {[%emt 0:03:56]} Kb6 {[%emt 0:00:17]} 36. Bd5 {[%emt 0:05:44]} f6 {[%emt 0:01:24]} 37. exf6 {[%emt 0:03:38]} exf6 {[%emt 0:00:32]} 38. Bg8 {[%emt 0:01:57]} h6 {[%emt 0:00:08]} 39. Bf7 {[%emt 0:01:24]} g5 {[%emt 0:02:44]} 40. fxg5 {[%emt 0:00:24]} fxg5 {[%emt 0:00:07]} 41. h5 {[%emt 0:30:12]} Kc5 {[%emt 0:30:13]} 42. f3 {[%emt 0:00:55]} Bc3 {[%emt 0:01:26]} 43. Kf2 {[%emt 0:01:15]} Kd4 {[%emt 0:00:15]} 44. Ke2 {[%emt 0:00:22]} Bb4 {[%emt 0:01:19]} 45. Bg8 {[%emt 0:00:00]} Ba5 {[%emt 0:00:00]} 46. a3 {[%emt 0:00:00]} Bc3 {[%emt 0:00:00]} 47. b4 {[%emt 0:00:00]} Bb2 {[%emt 0:00:00]} 48. a4 {[%emt 0:00:00] Hoping for a5.} Bc3 {[%emt 0:00:00]} 49. a5 {[%emt 0:00:00]} ({White should try} 49. b5 $16) 49... Bxb4 $14 {[%emt 0:00:00]} 50. a6 {[%emt 0:00:00] Intending a7 and mate.} Bc5 {[%emt 0:00:00]} 51. Kd2 {[%emt 0:00:00]} Ba7 {[%emt 0:00:00]} 52. Be6 {[%emt 0:00:00]} Ke5 {[%emt 0:00:00]} 53. Bc8 {[%emt 0:00:00]} Kd4 {[%emt 0:00:00]} 54. Kc2 {[%emt 0:00:00]} Kc4 {[%emt 0:00:00]} 55. Bh3 {[%emt 0:00:00]} Kd4 {[%emt 0:00:00]} 56. Kb3 {[%emt 0:00:00]} Ke5 {[%emt 0:00:00]} 57. Kc4 {[%emt 0:00:00]} Kd6 {[%emt 0:00:00]} 58. Bg4 {[%emt 0:00:00]} Ke5 {[%emt 0:00:00]} 59. Bc8 {[%emt 0:00:00]} Kd6 {[%emt 0:00:00]} 60. Kd3 {[%emt 0:00:00] Black escapes into a draw.  Weighted Error Value: White=0.09 (flawless) /Black=0.08 (flawless)} 1/2-1/2

[Event "SVK ECo-C Extraliga 2021-22"]
[Site "Slovakia"]
[Date "2022.06.11"]
[Round "10"]
[White "Saric, Ivan"]
[Black "Babula, Vlastimil"]
[Result "1/2-1/2"]
[ECO "B41"]
[WhiteElo "2693"]
[BlackElo "2576"]
[Annotator "TA"]
[PlyCount "56"]
[EventDate "2021.10.21"]
[EventType "team-tourn"]
[EventCountry "SVK"]
[SourceTitle "playchess.com"]
[Source "ChessBase"]
[SourceQuality "1"]
[TimeControl "40/5400+30:1800+30"]

{[%evp 9,56,12,33,31,32,32,31,31,59,41,44,31,37,16,35,32,51,29,46,41,29,27,32,24,49,5,14,0,0,0,0,-14,0,0,0,-66,-72,-82,-81,-115,-26,-38,-37,-29,0,0,-4,0,0]} 1. e4 {[%emt 1:31:00]} c5 {[%emt 1:31:00]} 2. Nf3 {[%emt 0:00:30]} e6 {[%emt 0:00:30]} 3. d4 {[%emt 0:00:30]} cxd4 {[%emt 0:00:30]} 4. Nxd4 {[%emt 0:00:30]} a6 {[%emt 0:00:30]} 5. a3 {[%emt 0:00:30]} b5 {[%emt 0:00:30]} 6. a4 {[%emt 0:00:30] [#] B41: Sicilian: Kan Variation: 5 c4.} bxa4 $146 {[%emt 0:00:30]} ({Predecessor:} 6... b4 7. Bd3 Bb7 8. O-O Ne7 9. Qh5 Nec6 10. Nxc6 Nxc6 11. Nd2 Qa5 12. Qh3 Ne5 13. b3 {1-0 (37) Hakobyan,A (2612)-Blomqvist,E (2550) Fagernes 2022}) 7. Bd3 {[%emt 0:00:30]} Bb7 {[%emt 0:00:30]} 8. O-O {[%emt 0:00:30] White is slightly better.} Nc6 {[%emt 0:00:30]} 9. Rxa4 {[%emt 0:00:30]} Nf6 {[%emt 0:00:30]} 10. Nc3 {[%emt 0:00:30]} Bd6 {[%emt 0:00:30]} 11. Be3 {[%emt 0:00:30]} Nxd4 {[%emt 0:00:30]} 12. Bxd4 {[%emt 0:00:30] [#] Strongly threatening e5.} Qb8 {[%emt 0:00:30]} 13. h3 {[%emt 0:00:30]} Be5 {[%emt 0:00:30]} 14. Bxe5 {[%emt 0:00:30]} Qxe5 {[%emt 0:00:30]} 15. Qa1 {[%emt 0:00:30] And now Qa3 would win.} O-O {[%emt 0:00:30]} 16. Ra5 {[%emt 0:00:30][%cal Ba4a5,Ba5g5,Bg5g3][%mdl 32]} Qc7 {[%emt 0:00:30]} 17. Re1 {[%emt 0:00:30]} d6 {[%emt 0:00:30]} 18. Rg5 {[%emt 0:00:30]} ({Wrong is} 18. Bxa6 $2 Qb6 19. Rb5 (19. e5 $2 dxe5 20. Rb5 Qxa6 $19) 19... Qxa6 $19) 18... h6 {[%emt 0:00:30]} 19. Rg3 {[%emt 0:00:30]} Rfc8 {[%emt 0:00:30]} 20. Nd1 {[%emt 0:00:30]} a5 {[%emt 0:00:30]} 21. b3 {[%emt 0:00:30] [#] Threatens to win with Qxf6.} Kh8 {[%emt 0:00:30]} 22. Ne3 {[%emt 0:00:30]} ({White should try} 22. c4 $11) 22... a4 $1 $15 {[%emt 0:00:30] Hoping for ...axb3.} 23. bxa4 {[%emt 0:00:30]} Bc6 {[%emt 0:00:30]} 24. Ng4 {[%emt 0:00:30]} Nxg4 {[%emt 0:00:30]} ({Better is} 24... Rxa4 $17 25. Qd1 Nxe4 26. Bxe4 Rxe4 27. Rxe4 Bxe4 28. Nxh6 Bg6) 25. hxg4 {[%emt 0:00:30]} Bxa4 {[%emt 0:00:30]} 26. Qd4 {[%emt 0:00:30]} Qc5 {[%emt 0:00:30]} 27. Qxc5 {[%emt 0:00:30]} Rxc5 {[%emt 0:00:30]} 28. Ra1 {[%emt 0:00:30]} Bc6 {[%emt 0:00:30] Weighted Error Value: White=0.13 (very precise) /Black=0.10 (very precise)} 1/2-1/2